lending/lending_fUSD_20260102
["ID","MTS","AMOUNT","RATE_DAILY","PERIOD"]
[400332710,1767382157239,-312.4869726,0.00017999,2]
[400332711,1767382157262,-18.15872049,0.00017999,2]
[400332712,1767382157517,500.0,0.00016973,2]
[400332713,1767382159882,-193.04576063,0.00017999,2]
[400332714,1767382160511,500.0,0.00016973,2]
[400332715,1767382161963,-288.79551888,0.00017999,2]
[400332716,1767382161986,-3.20352744,0.00017999,2]
[400332717,1767382162147,506.00324855,0.00016973,2]
[400332718,1767382163490,500.0,0.00016973,2]
[400332719,1767382164080,500.0,0.00016973,2]
[400332720,1767382164107,-190.91840058,0.00017999,2]
[400332721,1767382165005,279.74485327,0.00017902,2]
[400332722,1767382165029,10000.01,0.00017902,2]
[400332723,1767382165640,-350.0,0.00017902,2]
[400332724,1767382165680,500.0,0.00016973,2]
[400332725,1767382167018,500.0,0.00016973,2]
[400332726,1767382167704,-239.69824731,0.00017902,2]
[400332727,1767382167955,500.0,0.00016973,2]
[400332728,1767382168459,500.0,0.00016973,2]
[400332729,1767382169190,-198.33595259,0.00017521,2]
[400332730,1767382172874,-238.93055705,0.00017521,2]
[400332731,1767382177880,-361.80268287,0.00017521,2]
[400332732,1767382180548,-168.42970965,0.00017521,2]
[400332733,1767382182761,-32.50109784,0.00017521,2]
[400332734,1767382182782,-267.49890216,0.00017521,2]
[400332735,1767382186084,-227.98208343,0.00017521,2]
[400332736,1767382188266,-4.51901441,0.00017521,2]
[400332737,1767382188290,-166.63722731,0.00017902,2]
[400332738,1767382189822,-300.0,0.00017902,2]
[400332739,1767382193263,-198.62203879,0.00017902,2]
[400332740,1767382197799,-157.65642569,0.00017902,2]
[400332741,1767382199314,-186.43058011,0.00017902,2]
[400332742,1767382201391,-218.10345719,0.00017901,2]
[400332743,1767382206529,-278.25541568,0.000179,2]
[400332744,1767382206552,-91.58074623,0.000179,2]
[400332745,1767382206589,182.32213112,0.00016973,2]
[400332746,1767382207818,-158.41925377,0.000179,2]
[400332747,1767382207842,-81.89654281,0.00017901,2]
[400332748,1767382207866,-176.94434605,0.00017901,2]
[400332749,1767382210415,-123.05565395,0.00017901,2]
[400332750,1767382210438,-48.66324876,0.00017901,2]
[400332751,1767382213991,-231.14414203,0.00017901,2]
[400332752,1767382218257,-20.19260921,0.00017901,2]
[400332753,1767382218280,-202.30046525,0.00017901,2]
[400332754,1767382220843,-175.40153226,0.00017901,2]
[400332755,1767382223677,-226.57934152,0.00017901,2]
[400332756,1767382225747,-203.86,0.00017901,2]
[400332757,1767382227231,-199.73285797,0.00017901,2]
[400332769,1767382231504,-192.125803,0.00017901,2]
[400332770,1767382231514,-202.32428345,0.00017902,2]
[400332771,1767382231524,-286.96095259,0.00017902,2]
[400332772,1767382231558,-31212.43861478,0.00017902,2]
[400332773,1767382231567,-278.25541567,0.00017934,2]
[400332774,1767382231576,-278.25541567,0.00017968,2]
[400332775,1767382231586,-235.84568341,0.0001799,2]
[400332776,1767382231595,-550.0,0.00017998,2]
[400332777,1767382231604,-200.0,0.00017999,2]
[400332778,1767382231614,-305.87807198,0.00017999,2]
[400332779,1767382231624,-500.0,0.00017999,2]
[400332780,1767382231644,-500.0,0.00017999,2]
[400332781,1767382231660,-256.21783432,0.00017999,2]
[400332782,1767382231671,-500.0,0.00017999,2]
[400332783,1767382231683,-500.0,0.00017999,2]
[400332784,1767382231695,-500.0,0.00017999,2]
[400332785,1767382231705,-500.0,0.00017999,2]
[400332786,1767382231717,-500.0,0.00017999,2]
[400332788,1767382231728,-500.0,0.00017999,2]
[400332790,1767382231739,-500.0,0.00017999,2]
[400332792,1767382231749,-500.0,0.00017999,2]
[400332794,1767382231759,-500.0,0.00017999,2]
[400332796,1767382231769,-500.0,0.00017999,2]
[400332798,1767382231779,-500.0,0.00017999,2]
[400332800,1767382231790,-500.0,0.00017999,2]
[400332802,1767382231799,-500.0,0.00017999,2]
[400332804,1767382231810,-500.0,0.00017999,2]
[400332806,1767382231819,-349.63007336,0.00017999,2]
[400332809,1767382231831,-500.0,0.00017999,2]
[400332811,1767382231842,-500.0,0.00017999,2]
[400332813,1767382231852,-500.0,0.00017999,2]
[400332815,1767382231862,-196.69029515,0.00017999,2]
[400332817,1767382231873,-500.0,0.00017999,2]
[400332819,1767382231883,-500.0,0.00017999,2]
[400332821,1767382231893,-500.0,0.00017999,2]
[400332823,1767382231903,-350.22800742,0.00017999,2]
[400332825,1767382231913,-250.0,0.00017999,2]
[400332828,1767382231924,-500.0,0.00017999,2]
[400332830,1767382231933,-584.92066446,0.00017999,2]
[400332832,1767382231943,-500.0,0.00017999,2]
[400332833,1767382231953,-500.0,0.00017999,2]
[400332835,1767382231964,-500.0,0.00017999,2]
[400332837,1767382231974,-500.0,0.00017999,2]
[400332838,1767382231985,-500.0,0.00017999,2]
[400332839,1767382231994,-500.0,0.00017999,2]
[400332840,1767382232005,-500.0,0.00017999,2]
[400332841,1767382232016,-500.0,0.00017999,2]
[400332842,1767382232030,-500.0,0.00017999,2]
[400332843,1767382232040,-500.0,0.00017999,2]
[400332844,1767382232051,-500.0,0.00017999,2]
[400332845,1767382232061,-500.0,0.00017999,2]
[400332846,1767382232071,-500.0,0.00017999,2]
[400332847,1767382232081,-500.0,0.00017999,2]
[400332848,1767382232092,-500.0,0.00017999,2]
[400332849,1767382232103,-500.0,0.00017999,2]
[400332850,1767382232112,-500.0,0.00017999,2]
[400332851,1767382232123,-500.0,0.00017999,2]
[400332852,1767382232133,-500.0,0.00017999,2]
[400332853,1767382232143,-500.0,0.00017999,2]
[400332854,1767382232153,-500.0,0.00017999,2]
[400332855,1767382232163,-500.0,0.00017999,2]
[400332856,1767382232173,-500.0,0.00017999,2]
[400332857,1767382232183,-500.0,0.00017999,2]
[400332858,1767382232192,-500.0,0.00017999,2]
[400332859,1767382232202,-500.0,0.00017999,2]
[400332860,1767382232211,-500.0,0.00017999,2]
[400332861,1767382232221,-500.0,0.00017999,2]
[400332862,1767382232231,-500.0,0.00017999,2]
[400332863,1767382232241,-500.0,0.00017999,2]
[400332864,1767382232251,-500.0,0.00017999,2]
[400332865,1767382232260,-500.0,0.00017999,2]
[400332866,1767382232269,-500.0,0.00017999,2]
[400332867,1767382232279,-500.0,0.00017999,2]
[400332868,1767382232289,-500.0,0.00017999,2]
[400332869,1767382232299,-500.0,0.00017999,2]
[400332870,1767382232310,-408.49206645,0.00017999,2]
[400332871,1767382232323,-500.0,0.00017999,2]
[400332872,1767382232334,-500.0,0.00017999,2]
[400332873,1767382232343,-188.5211439,0.00017999,2]
[400332874,1767382232355,-500.0,0.00017999,2]
[400332875,1767382232364,-490.52820749,0.00017999,2]
[400332876,1767382232375,-500.0,0.00017999,2]
[400332877,1767382232385,-500.0,0.00017999,2]
[400332878,1767382232404,-500.0,0.00017999,2]
[400332879,1767382232418,-324.10825114,0.00017999,2]
[400332880,1767382232429,-500.0,0.00017999,2]
[400332881,1767382232441,-404.1127364,0.00017999,2]
[400332882,1767382232452,-500.0,0.00017999,2]
[400332883,1767382232462,-500.0,0.00017999,2]
[400332884,1767382232472,-899.24425346,0.00018,2]
[400332885,1767382232482,-345.52697082,0.00018,2]
[400332886,1767382232493,-978.64153248,0.00018,2]
[400332887,1767382232506,-1171.50392868,0.00018,2]
[400332888,1767382232517,-26772.28637174,0.00018,2]
[400332889,1767382232532,-2700.0,0.00018,2]
[400332890,1767382232549,-1262.55072545,0.00018,2]
[400332891,1767382232683,-175.13436172,0.00018,2]
[400332892,1767382236460,-208.2668177,0.00018,2]
[400332895,1767382237705,-192897.81986653,0.00018,2]
[400332896,1767382237941,-244.21374476,0.00018,2]
[400332906,1767382239661,-265.1286,0.00018,2]
[400332907,1767382239673,-2434.33624753,0.00018,2]
[400332908,1767382239686,-790.73569194,0.00018,2]
[400332912,1767382241761,-1.7e-07,0.00018,2]
[400332913,1767382241776,-4076.14109984,0.00018,2]
[400332914,1767382241786,-424.34554978,0.00018,2]
[400332915,1767382241797,-1279.2779985,0.00018,2]
[400332916,1767382241808,-324.7149346,0.00018,2]
[400332917,1767382241819,-1723.07381486,0.00018,2]
[400332918,1767382241831,-9006.5371147,0.00018,2]
[400332919,1767382241842,-949766.57869811,0.00018,2]
[400332920,1767382241851,-580850.17687762,0.00018,2]
[400332921,1767382241860,-849.75332306,0.00018068,2]
[400332922,1767382241869,-1100.22634579,0.00018068,2]
[400332923,1767382241881,-1000.9665977,0.00018068,2]
[400332924,1767382241890,-1001.03651172,0.00018068,2]
[400332925,1767382241899,-1001.43112741,0.00018068,2]
[400332926,1767382241909,-573.26613188,0.00018068,2]
[400332927,1767382241918,-1001.94195997,0.00018068,2]
[400332928,1767382241928,-500.80390258,0.00018068,2]
[400332929,1767382241937,-482.50515022,0.00018068,2]
[400332930,1767382241946,-1500.0,0.00018068,2]
[400332931,1767382241956,-200.0,0.00018179,2]
[400332932,1767382241966,-200.0,0.00018361,2]
[400332933,1767382241976,-151.37565962,0.00018521,2]
[400332934,1767382241985,-200.0,0.00018544,2]
[400332935,1767382241994,-2000.0,0.00018616,2]
[400332936,1767382242004,-151.4,0.000188,2]
[400332937,1767382242013,-151.4,0.000188,2]
[400332938,1767382242023,-151.4,0.000188,2]
[400332939,1767382242032,-151.4,0.000188,2]
[400332940,1767382242041,-151.4,0.000188,2]
[400332941,1767382242050,-151.4,0.000188,2]
[400332942,1767382242059,-151.4,0.000188,2]
[400332943,1767382242068,-151.4,0.000188,2]
[400332944,1767382242076,-151.4,0.000188,2]
[400332945,1767382242085,-151.4,0.000188,2]
[400332946,1767382242095,-151.4,0.000188,2]
[400332947,1767382242104,-935.0,0.00019078,2]
[400332948,1767382242113,-200.2041015,0.00019082,2]
[400332949,1767382242122,-2417.6062809,0.00019164,2]
[400332950,1767382242131,-159.96945707,0.00019178,2]
[400332951,1767382242140,-150.0,0.00019178,2]
[400332952,1767382242149,-250.0,0.00019264,2]
[400332953,1767382242158,-300.0,0.00019264,2]
[400332954,1767382242167,-193.0,0.00019273,2]
[400332955,1767382242177,-420.0,0.00019534,2]
[400332956,1767382242186,-420.0,0.00019534,2]
[400332957,1767382242195,-1680.0,0.00019628,2]
[400332958,1767382242204,-1680.0,0.0001963,2]
[400332959,1767382242214,-250.0,0.0001969,2]
[400332960,1767382242224,-250.0,0.00019726,2]
[400332961,1767382242233,-150.0,0.0002,2]
[400332962,1767382242243,-150.0,0.0002,2]
[400332963,1767382242252,-194.84702052,0.0002,2]
[400332964,1767382242261,-151.4,0.00020172,2]
[400332965,1767382242271,-9724.1291261,0.00020182,2]
[400332966,1767382242280,-1589.0,0.0002023,2]
[400332967,1767382242291,-260.73690508,0.00020274,2]
[400332968,1767382242299,-2169.7464892,0.00020691,2]
[400332969,1767382242308,-191.93,0.00021161,2]
[400332970,1767382242317,-587.0,0.00021316,2]
[400332971,1767382242327,-587.0,0.00021316,2]
[400332972,1767382242336,-2351.0,0.00021417,2]
[400332973,1767382242346,-659.0,0.00021436,2]
[400332974,1767382242356,-2351.0,0.00021526,2]
[400332975,1767382242364,-166.66,0.00022594,30]
[400332976,1767382242374,-166.66,0.0002307,30]
[400332977,1767382242385,-823.0,0.0002326,2]
[400332978,1767382242395,-823.0,0.0002326,2]
[400332979,1767382242404,-2812.0,0.00023368,2]
[400332980,1767382242413,-431.18,0.00023386,2]
[400332981,1767382242423,-166.66,0.00023545,30]
[400332982,1767382242432,-23548.83189376,0.00023597,2]
[400332984,1767382242440,-18339.60644578,0.00023597,2]
[400332986,1767382242450,-3292.0,0.00023605,2]
[400332987,1767382242459,-860.5,0.00023652,2]
[400332988,1767382242468,-151.4,0.00023687,2]
[400332989,1767382242476,-1847.03802538,0.00023697,2]
[400332990,1767382242485,-250.0,0.00023783,2]
[400332991,1767382242494,-200.0,0.00023797,2]
[400332992,1767382242503,-166.66,0.00024021,30]
[400332993,1767382242511,-500.0,0.0002417,2]
[400332994,1767382242520,-500.0,0.00024401,2]
[400332995,1767382242529,-169.51031729,0.0002447,2]
[400332996,1767382242538,-200.0,0.00024493,2]
[400332997,1767382242547,-166.66,0.00024497,30]
[400332998,1767382242556,-151.4,0.00024548,2]
[400332999,1767382242564,-151.4,0.00024548,2]
[400333000,1767382242573,-151.4,0.00024548,2]
[400333001,1767382242582,-151.4,0.00024548,2]
[400333002,1767382242591,-151.4,0.00024548,2]
[400333003,1767382242599,-151.4,0.00024548,2]
[400333004,1767382242608,-151.4,0.00024548,2]
[400333005,1767382242617,-151.4,0.00024548,2]
[400333006,1767382242626,-151.4,0.00024548,2]
[400333007,1767382242635,-151.4,0.00024548,2]
[400333008,1767382242644,-151.4,0.00024548,2]
[400333009,1767382242653,-151.4,0.00024548,2]
[400333010,1767382242664,-151.4,0.00024548,2]
[400333011,1767382242673,-151.4,0.00024548,2]
[400333012,1767382242682,-151.4,0.00024548,2]
[400333013,1767382242694,-300.0,0.00024557,2]
[400333014,1767382242703,-300.0,0.00024557,2]
[400333015,1767382242711,-666.0,0.00024557,2]
[400333016,1767382242721,-1000000.0,0.00024558,2]
[400333017,1767382242731,-151.4,0.0002457,2]
[400333018,1767382242740,-151.4,0.0002457,2]
[400333019,1767382242749,-300.0,0.00024579,2]
[400333020,1767382242759,-300.0,0.00024579,2]
[400333021,1767382242768,-695.86626981,0.00024579,2]
[400333022,1767382242777,-1878.3594477,0.0002458,2]
[400333023,1767382242787,-203.94309107,0.0002458,2]
[400333024,1767382242796,-7111.488464,0.0002458,2]
[400333025,1767382242805,-299.99,0.0002458,7]
[400333026,1767382242814,-102370.85,0.0002458,2]
[400333027,1767382242823,-512.46,0.0002458,2]
[400333028,1767382242832,-25165.05,0.0002458,2]
[400333029,1767382242842,-150.99,0.0002458,2]
[400333030,1767382242851,-9999.99,0.0002458,2]
[400333031,1767382242860,-819.20411055,0.00024595,2]
[400333032,1767382242869,-300.0,0.00024657,2]
[400333033,1767382242878,-13394.60934435,0.00024658,2]
[400333034,1767382242919,151.0,0.00018359,2]
[400333037,1767382243923,-449.51,0.00018,2]
[400333038,1767382243936,-218.8032812,0.00018,2]
[400333039,1767382243945,-35.59185412,0.00018,2]
[400333040,1767382243957,-709.31529692,0.00018,2]
[400333041,1767382243966,-616.13470308,0.00018,2]
[400333042,1767382244000,-33.15049762,0.00018,2]
[400333043,1767382244012,-836.99523524,0.00018,2]
[400333044,1767382244023,-205.33171033,0.00018,2]
[400333045,1767382244032,-151.0,0.00018359,2]
[400333046,1767382244041,-67.62410639,0.00024658,2]
[400333047,1767382244052,-489.68654926,0.00024658,2]
[400333048,1767382244062,-1000.0,0.00024658,2]
[400333049,1767382244071,-1922.94324586,0.00024678,7]
[400333066,1767382245499,-762.20775414,0.00024678,7]
[400333069,1767382245508,-161.014,0.00024678,7]
[400333072,1767382245519,-458.94048667,0.00024679,2]
[400333075,1767382245528,-151.4,0.00024696,2]
[400333079,1767382245537,-300.0,0.00024705,10]
[400333081,1767382245551,-17680.47512095,0.00024706,2]
[400333083,1767382245560,-500.0,0.00024769,2]
[400333084,1767382245570,-500.0,0.00024769,2]
[400333085,1767382245579,-151.0,0.00024776,7]
[400333086,1767382245588,-151.0,0.00024776,7]
[400333087,1767382245598,-957.35,0.00024778,2]
[400333088,1767382245608,-500.0,0.00024778,2]
[400333089,1767382245617,-500.0,0.00024778,2]
[400333090,1767382245626,-500.0,0.00024778,2]
[400333091,1767382245636,-500.0,0.00024778,2]
[400333092,1767382245646,-1104.26040629,0.00024778,10]
[400333093,1767382245659,-500.0,0.00024778,2]
[400333094,1767382245668,-200.0,0.00024779,2]
[400333095,1767382245679,-4269.59,0.000248,2]
[400333096,1767382245688,-1084.13,0.000248,7]
[400333097,1767382245699,-500.0,0.00024879,2]
[400333098,1767382245708,-500.0,0.00024879,2]
[400333099,1767382245718,-342.29233774,0.00024879,2]
[400333100,1767382245729,-166.66,0.00024972,30]
[400333101,1767382245739,-450.0,0.00025,2]
[400333102,1767382245752,-200.0,0.00025027,2]
[400333103,1767382245762,-957.35,0.00025052,2]
[400333104,1767382245772,-200.0,0.00025277,2]
[400333105,1767382245781,-957.35,0.00025326,2]
[400333106,1767382245792,-1152.0,0.00025382,2]
[400333107,1767382245802,-686.8236182,0.00025382,2]
[400333108,1767382245819,-465.1763818,0.00025382,2]
[400333109,1767382245829,-200.0,0.0002553,2]
[400333110,1767382245838,-334.8036182,0.000256,2]
[400333111,1767382245850,-622.5463818,0.000256,2]
[400333112,1767382245859,-300.0,0.00025736,10]
[400333113,1767382245869,-8135.22947195,0.00025737,2]
[400333114,1767382245880,-308.93545843,0.00025737,2]
[400333116,1767382245892,-15104.66696337,0.00025737,2]
[400333118,1767382245903,-18339.60644578,0.00025737,2]
[400333119,1767382245912,-200.0,0.00025785,2]
[400333120,1767382245921,-957.35,0.00025874,2]
[400333121,1767382245930,-151.4,0.00025875,2]
[400333123,1767382245940,-4609.0,0.00025885,2]
[400333124,1767382245954,-957.35,0.00026148,2]
[400333125,1767382245964,-300.0,0.00026176,2]
[400333126,1767382245973,-500.0,0.00026219,2]
[400333127,1767382245983,-957.35,0.00026422,2]
[400333128,1767382245992,-191.93,0.00026452,2]
[400333129,1767382246001,-427.36,0.00026676,2]
[400333130,1767382246011,-957.38,0.00026696,2]
[400333131,1767382246019,-500.0,0.00027,2]
[400333132,1767382246029,-250.0,0.00027,2]
[400333133,1767382246038,-188.38408228,0.00027,2]
[400333134,1767382246054,-841.62488053,0.00027,2]
[400333135,1767382246063,-530.0,0.00027,2]
[400333136,1767382246072,-1792.31197302,0.0002739,2]
[400333140,1767382263937,178.0396252,0.00016438,2]
[400333141,1767382263962,273.87594425,0.00016438,2]
[400333142,1767382263987,348.08443055,0.00016438,2]
[400333143,1767382264022,500.0,0.00016973,2]
[400333144,1767382264413,160.44462933,0.00016973,2]
[400333145,1767382264445,519.79027428,0.00016973,2]
[400333146,1767382265728,-330.70736009,0.00017534,2]
[400333147,1767382266267,160.46999572,0.00016973,2]
[400333148,1767382266991,178.04457807,0.00016973,2]
[400333149,1767382267183,641.09890992,0.00016973,2]
[400333150,1767382267553,500.0,0.00016973,2]
[400333151,1767382267995,150.44413296,0.00016973,2]
[400333152,1767382268058,160.47604976,0.00016973,2]
[400333153,1767382268111,150.19862798,0.00016973,2]
[400333154,1767382269743,-249.982578,0.00017521,2]
[400333155,1767382271937,-229.12794443,0.00017521,2]
[400333156,1767382274905,-248.35426104,0.00017521,2]
[400333157,1767382281551,-168.01788673,0.00017521,2]
[400333158,1767382283125,-104.5173298,0.00017521,2]
[400333159,1767382283147,-95.4826702,0.00017534,2]
[400333160,1767382284756,-293.30448,0.00017534,2]
[400333161,1767382287334,-82.36896705,0.00017534,2]
[400333162,1767382287359,-246.08198976,0.00017999,2]
[400333163,1767382290083,-253.91801024,0.00017999,2]
[400333164,1767382290107,-360.32928491,0.00017999,2]
[400333165,1767382292043,-139.67071509,0.00017999,2]
[400333166,1767382292067,-474.98743569,0.00017999,2]
[400333167,1767382294809,-25.01256431,0.00017999,2]
[400333168,1767382294831,-159.62664166,0.00017999,2]
[400333169,1767382297736,-164.77834246,0.00017999,2]
[400333170,1767382300297,-175.59501588,0.00017999,2]
[400333171,1767382300322,-49.39347369,0.00017999,2]
[400333172,1767382301745,-271.67617861,0.00017999,2]
[400333173,1767382304331,-178.9303477,0.00017999,2]
[400333174,1767382304352,-3.13752491,0.00017999,2]
[400333175,1767382308185,-248.22109801,0.00017999,2]
[400333176,1767382310457,-242.1276997,0.00017999,2]
[400333177,1767382310481,-392.16858468,0.00017999,2]
[400333178,1767382314234,-107.83141532,0.00017999,2]
[400333179,1767382314256,-130.42803022,0.00017999,2]
[400333180,1767382315725,-192.99831103,0.00017999,2]
[400333181,1767382317415,-176.57365875,0.00017999,2]
[400333182,1767382317441,-7.89700128,0.00017999,2]
[400333183,1767382319442,-417.66864657,0.00017999,2]
[400333184,1767382320977,-74.43435215,0.00017999,2]
[400333185,1767382321006,-153.42781905,0.00017999,2]
[400333186,1767382323058,-177.00021117,0.00017998,2]
[400333187,1767382323705,500.77579373,0.00014773,2]
[400333188,1767382323734,500.44375967,0.00016973,2]
[400333189,1767382324463,549.89268014,0.00014773,2]
[400333190,1767382324847,-122.99978883,0.00017998,2]
[400333191,1767382324871,-108.55543981,0.00017999,2]
[400333192,1767382324967,500.0,0.00014773,2]
[400333193,1767382325024,1046.45463776,0.00015321,2]
[400333194,1767382327261,500.3997145,0.00016973,2]
[400333195,1767382328053,-39.60457395,0.00017999,2]
[400333196,1767382328080,-241.65238321,0.00017999,2]
[400333197,1767382332856,-174.56802001,0.00017999,2]
[400333198,1767382335034,-83.77959678,0.00017999,2]
[400333199,1767382335058,-111.22040322,0.00017999,2]
[400333200,1767382337185,-161.99344713,0.00017999,2]
[400333201,1767382339249,-226.78614965,0.00017999,2]
[400333202,1767382339274,-69.42022967,0.00017999,2]
[400333203,1767382340863,-430.57977033,0.00017999,2]
[400333204,1767382340890,-45.0828801,0.00017999,2]
[400333205,1767382343520,-231.21921311,0.00018068,2]
[400333206,1767382405440,1072.75,0.00014467,2]
[400333207,1767382405634,1072.75,0.00015228,2]
[400333208,1767382405834,1072.75,0.0001599,2]
[400333209,1767382406254,1072.75,0.00016751,2]
[400333211,1767382416349,-374.07498275,0.00017513,2]
[400333212,1767382421203,-205.21687214,0.00017513,2]
[400333213,1767382422559,-315.51067724,0.00017513,2]
[400333214,1767382425329,-177.94746787,0.00017513,2]
[400333215,1767382425352,-72.05253213,0.00018068,2]
[400333216,1767382426818,-257.4489126,0.00018068,2]
[400333217,1767382426841,-0.00226677,0.00018274,2]
[400333218,1767382429128,-199.20422336,0.00018274,2]
[400333219,1767382430675,-335.22943184,0.00018274,2]
[400333220,1767382444444,500.42140064,0.00016973,2]
[400333221,1767382445461,500.29264717,0.00016973,2]
[400333222,1767382445796,500.0,0.00016973,2]
[400333223,1767382445952,500.0,0.00016973,2]
[400333224,1767382446005,110.32936639,0.00016973,2]
[400333225,1767382446026,390.31293127,0.00016973,2]
[400333226,1767382446584,500.0,0.00014773,2]
[400333227,1767382446644,1500.0,0.00015868,2]
[400333228,1767382446720,500.0,0.00016973,2]
[400333229,1767382446772,2000.0,0.00016416,2]
[400333230,1767382446816,500.0,0.00016973,2]
[400333231,1767382446849,2001.74704855,0.00016964,2]
[400333232,1767382446886,-289.77835118,0.00017521,2]
[400333233,1767382447277,1000.0,0.00015321,2]
[400333234,1767382449624,500.0,0.00016973,2]
[400333235,1767382450123,-223.0315306,0.00017521,2]
[400333236,1767382451169,536.97031087,0.00014773,2]
[400333237,1767382452377,-203.47415908,0.00017521,2]
[400333238,1767382454511,-261.38456414,0.00017521,2]
[400333239,1767382454597,-25.94778887,0.00017521,2]
[400333240,1767382456648,-264.31997141,0.00017521,2]
[400333241,1767382491972,-355.34122303,0.00017521,2]
[400333242,1767382494566,-177.91265073,0.00017521,2]
[400333243,1767382496068,-176.47836596,0.00017521,2]
[400333244,1767382496089,-20.79075461,0.00017521,2]
[400333245,1767382501782,-166.81349127,0.00017521,2]
[400333246,1767382503873,-204.28178883,0.00017521,2]
[400333247,1767382504137,201.41739586,0.00014773,2]
[400333248,1767382504178,501.16590956,0.00016973,2]
[400333249,1767382504350,500.0,0.00016973,2]
[400333250,1767382504524,500.0,0.00016973,2]
[400333251,1767382505305,-206.29079003,0.00017521,2]
[400333252,1767382508132,500.0,0.00014773,2]
[400333253,1767382508166,500.0,0.00015321,2]
[400333254,1767382508197,500.0,0.00014773,2]
[400333255,1767382508229,1000.0,0.00015321,2]
[400333256,1767382508281,417.22865206,0.00015868,2]
[400333257,1767382508763,3617.0,0.00017,2]
[400333258,1767382511751,-253.58674719,0.00017521,2]
[400333259,1767382513239,-148.23642807,0.00017521,2]
[400333260,1767382513260,-133.86471407,0.00017521,2]
[400333261,1767382518404,-183.76855541,0.00017521,2]
[400333262,1767382519934,-518.04049552,0.00017521,2]
[400333263,1767382523135,503.61000694,0.00016973,2]
[400333264,1767382524899,500.0,0.00016973,2]
[400333265,1767382527709,-164.326235,0.00017521,2]
[400333266,1767382527735,-58.41070125,0.00017521,2]
[400333267,1767382529291,-268.0,0.00017521,2]
[400333268,1767382534004,-231.90626418,0.00017521,2]
[400333269,1767382536431,-160.72436453,0.00017521,2]
[400333270,1767382564218,500.0,0.00016973,2]
[400333271,1767382566901,-280.95867004,0.00017521,2]
[400333272,1767382566923,-20.20322547,0.00017521,2]
[400333273,1767382573421,-206.70642253,0.00017521,2]
[400333274,1767382576110,-214.32357581,0.00017521,2]
[400333275,1767382581430,-265.33343603,0.00017521,2]
[400333276,1767382596352,-293.43334016,0.00017521,2]
[400333277,1767382596375,-129.44760682,0.00017683,2]
[400333278,1767382598509,-291.49263393,0.00017683,2]
[400333279,1767382601472,-296.48,0.00017683,2]
[400333280,1767382606554,-165.51901003,0.00017683,2]
[400333281,1767382609989,-373.88504757,0.00017683,2]
[400333282,1767382613442,-274.66608259,0.00017683,2]
[400333283,1767382615559,-330.56250104,0.00017683,2]
[400333284,1767382619420,-193.88020266,0.00017683,2]
[400333285,1767382623363,165.79779618,0.00014773,2]
[400333286,1767382623482,500.0,0.00015321,2]
[400333287,1767382623513,500.0,0.00014773,2]
[400333288,1767382623554,1000.0,0.00015321,2]
[400333289,1767382623585,500.0,0.00014773,2]
[400333290,1767382623615,1201.98303125,0.00015868,2]
[400333291,1767382623667,453.14856339,0.00016973,2]
[400333292,1767382625596,500.0,0.00016973,2]
[400333293,1767382625984,500.0,0.00016973,2]
[400333294,1767382626399,500.0,0.00016973,2]
[400333295,1767382626429,-409.24786967,0.00017521,2]
[400333296,1767382626466,500.0,0.00016973,2]
[400333297,1767382629634,-159.38825297,0.00017521,2]
[400333298,1767382629674,500.0,0.00016973,2]